[Event "20th Dubai Open 2018"]
[Site "Dubai"]
[Date "2018.04.03"]
[Round "1"]
[White "Berezina, Irina"]
[Black "Karthikeyan Pandiyan"]
[Result "0-1"]
[ECO "A14"]
[WhiteElo "2082"]
[BlackElo "1422"]
[Annotator "NA RC"]
[PlyCount "73"]
[EventDate "2018.??.??"]
[EventType "swiss"]
[EventCountry "UAE"]
[SourceTitle "playchess.com"]
[Source "ChessBase"]
[SourceQuality "1"]
[TimeControl "5400+30"]

1. Nf3 {[%emt 0:00:00]} e6 {[%emt 0:00:15]} 2. c4 {[%emt 0:00:43]} Nf6 {[%emt 0:00:29]} 3. g3 {[%emt 0:00:37]} d5 {[%emt 0:00:26]} 4. Bg2 {[%emt 0:00:18]} c6 {[%emt 0:00:30]} 5. b3 {[%emt 0:02:51]} Nbd7 {[%emt 0:00:23]} 6. Bb2 {[%emt 0:00:14]} Be7 {[%emt 0:00:11]} 7. O-O {[%emt 0:00:07]} O-O {[%emt 0:00:05]} 8. d3 {[%emt 0:01:24]} b6 {[%emt 0:00:46]} 9. Qc2 {[%emt 0:02:03]} Bb7 {[%emt 0:03:13]} 10. e4 {[%emt 0:00:51]} c5 {[%emt 0:00:41]} 11. cxd5 {[%emt 0:03:24]} exd5 {[%emt 0:00:05]} 12. Nh4 {[%emt 0:00:56]} g6 {[%emt 0:11:28]} 13. Nd2 {[%emt 0:03:10]} Nh5 {[%emt 0:07:00]} 14. Nhf3 {[%emt 0:01:21]} Bf6 {[%emt 0:00:39]} 15. Rfe1 {[%emt 0:03:34]} Bxb2 {[%emt 0:02:00]} 16. Qxb2 {[%emt 0:00:35]} Qf6 {[%emt 0:18:01]} 17. e5 {[%emt 0:03:38]} Qe7 {[%emt 0:06:10]} 18. b4 {[%emt 0:05:56]} Rab8 {[%emt 0:11:06]} 19. bxc5 {[%emt 0:01:57]} Nxc5 {[%emt 0:01:46]} 20. Qa3 {[%emt 0:00:32]} d4 {[%emt 0:02:08]} 21. Nb3 {[%emt 0:04:08]} Rfd8 {[%emt 0:05:40]} 22. Nxc5 {[%emt 0:06:18]} Bxf3 {[%emt 0:10:46]} 23. Bxf3 {[%emt 0:00:33]} bxc5 {[%emt 0:00:54]} 24. Rac1 {[%emt 0:01:55]} Rb4 {[%emt 0:01:10]} 25. Qa5 {[%emt 0:02:59]} Rb2 {[%emt 0:08:35]} 26. e6 {[%emt 0:14:07]} fxe6 {[%emt 0:02:05]} 27. Rxe6 {[%emt 0:00:47]} Qg5 {[%emt 0:00:19]} 28. Qxc5 {[%emt 0:04:02]} Qxc5 {[%emt 0:01:11]} 29. Rxc5 {[%emt 0:00:06]} Rxa2 {[%emt 0:00:09]} 30. Bd5 {[%emt 0:01:39]} Ra1+ {[%emt 0:02:37]} 31. Re1+ {[%emt 0:00:08]} Rxd5 {[%emt 0:00:03]} 32. Rc8+ {[%emt 0:00:05]} Kf7 {[%emt 0:00:13]} 33. Rxa1 {[%emt 0:00:21]} a5 {[%emt 0:00:05]} 34. Ra8 {[%emt 0:00:22]} Nf6 {[%emt 0:01:03]} 35. R1xa5 {[%emt 0:00:12]} Rxa5 {[%emt 0:00:03]} 36. Rxa5 {[%emt 0:00:06]} Ke6 {[%emt 0:00:04]} 37. Kg2 {[%emt 0:00:37] Kd5 [%clk 0:05:58]} 0-1

[Event "20th Dubai Open 2018"]
[Site "Dubai"]
[Date "2018.04.04"]
[Round "3"]
[White "Omar, Noaman"]
[Black "Ma, Lin"]
[Result "1/2-1/2"]
[ECO "D85"]
[WhiteElo "2372"]
[BlackElo "2156"]
[Annotator "NA"]
[PlyCount "65"]
[EventDate "2018.??.??"]
[EventType "swiss"]
[EventCountry "UAE"]
[SourceTitle "playchess.com"]
[Source "ChessBase"]
[SourceQuality "1"]
[TimeControl "5400+30"]

1. d4 {[%emt 0:01:04]} Nf6 {[%emt 0:00:14]} 2. c4 {[%emt 0:00:07]} g6 {[%emt 0:00:07]} 3. Nc3 {[%emt 0:00:17]} d5 {[%emt 0:00:05]} 4. cxd5 {[%emt 0:00:20]} Nxd5 {[%emt 0:00:05]} 5. e4 {[%emt 0:00:00]} Nxc3 {[%emt 0:00:00]} 6. bxc3 {[%emt 0:00:00]} Bg7 {[%emt 0:00:00]} 7. Nf3 {[%emt 0:00:00]} c5 {[%emt 0:00:07]} 8. Be3 {[%emt 0:00:09] LiveBook: 1694 Games} Qa5 {[%emt 0:08:28]} 9. Bd2 {[%emt 0:00:40]} O-O {[%emt 0:06:50]} 10. h3 {[%emt 0:00:04]} Rd8 {[%emt 0:13:53]} 11. Bc4 {[%emt 0:04:10]} Nc6 {[%emt 0:14:09]} 12. O-O {[%emt 0:02:24]} Qc7 {[%emt 0:09:34]} 13. Rc1 {[%emt 0:04:11]} ({Don't play} 13. dxc5 Na5 $15) 13... b6 {[%emt 0:02:51]} 14. d5 {[%emt 0:00:55]} Na5 {[%emt 0:01:30]} 15. Be2 {[%emt 0:02:33]} c4 $14 {[%emt 0:03:54]} 16. Bg5 {[%emt 0:00:49]} f5 {[%emt 0:05:54]} 17. e5 {[%emt 0:07:07]} Bb7 {[%emt 0:08:43]} 18. d6 exd6 {[%emt 0:00:00]} 19. Bxd8 {[%emt 0:00:48]} Rxd8 {[%emt 0:00:00]} 20. e6 {[%emt 0:03:27]} Qe7 {[%emt 0:06:16]} 21. Nd4 {[%emt 0:00:31]} d5 {[%emt 0:06:21]} 22. Re1 {[%emt 0:00:31]} Nc6 {[%emt 0:00:02]} 23. Nxc6 {[%emt 0:02:22]} Bxc6 {[%emt 0:00:02]} 24. Bf3 {[%emt 0:00:48]} Rd6 {[%emt 0:01:30]} 25. Qd2 {[%emt 0:00:52]} Bf6 {[%emt 0:01:21]} 26. Rcd1 {[%emt 0:01:15]} Kg7 {[%emt 0:00:12]} 27. g3 {[%emt 0:01:12]} Bg5 {[%emt 0:04:04]} 28. Qd4+ {[%emt 0:00:29]} Bf6 {[%emt 0:00:00]} 29. Qe3 {[%emt 0:02:33]} Bg5 {[%emt 0:00:00]} 30. Qe2 {[%emt 0:00:23]} Bf6 {[%emt 0:00:02]} 31. Rc1 {[%emt 0:00:33]} Bg5 {[%emt 0:00:35]} 32. Rcd1 {[%emt 0:10:28]} Bf6 {[%emt 0:00:05]} 33. Qe3 {[%emt 0:03:01]} 1/2-1/2

[Event "20th Dubai Open 2018"]
[Site "Dubai"]
[Date "2018.04.04"]
[Round "3"]
[White "Dimarucut, Francis Erwin"]
[Black "Tissir, Mohamed"]
[Result "0-1"]
[ECO "A01"]
[WhiteElo "2107"]
[BlackElo "2381"]
[Annotator "NA"]
[PlyCount "64"]
[EventDate "2018.??.??"]
[EventType "swiss"]
[EventCountry "UAE"]
[SourceTitle "playchess.com"]
[Source "ChessBase"]
[SourceQuality "1"]
[TimeControl "5400+30"]

1. b3 {[%emt 0:00:00]} e5 {[%emt 0:01:01]} 2. Bb2 {[%emt 0:00:00]} Nc6 {[%emt 0:00:05]} 3. e3 {[%emt 0:00:00]} a6 {[%emt 0:00:49]} 4. Nf3 {[%emt 0:03:05]} e4 {[%emt 0:05:39]} 5. Nd4 {[%emt 0:04:18]} Nf6 {[%emt 0:03:28]} 6. Nxc6 {[%emt 0:00:42]} dxc6 {[%emt 0:00:13]} 7. Be2 {[%emt 0:00:17]} Bd6 {[%emt 0:00:06]} 8. Nc3 {[%emt 0:00:09]} Qe7 {[%emt 0:00:07]} 9. d3 {[%emt 0:04:37]} exd3 {[%emt 0:05:23]} 10. Bxd3 {[%emt 0:03:49]} O-O {[%emt 0:00:26]} 11. Qd2 {[%emt 0:01:40]} b5 {[%emt 0:01:02]} 12. a4 {[%emt 0:03:54]} Rb8 {[%emt 0:03:50]} 13. h3 {[%emt 0:02:05]} Re8 {[%emt 0:01:39]} 14. g4 {[%emt 0:15:37]} Bb4 {[%emt 0:03:22]} 15. g5 $19 {[%emt 0:11:36]} (15. Kf1 $17) 15... Nd5 {[%emt 0:04:09]} 16. Kf1 {[%emt 0:09:46]} Qc5 {[%emt 0:17:09]} 17. Ne4 {[%emt 0:06:42]} Rxe4 {[%emt 0:00:56]} 18. c3 {[%emt 0:00:07]} Nxe3+ {[%emt 0:05:48]} 19. fxe3 {[%emt 0:00:48]} Qxe3 {[%emt 0:00:05]} 20. Qxe3 {[%emt 0:06:16]} Rxe3 {[%emt 0:00:03]} 21. Bxh7+ {[%emt 0:07:08]} Kxh7 {[%emt 0:00:09]} 22. cxb4 {[%emt 0:00:07]} Rxb3 {[%emt 0:00:09]} 23. Be5 {[%emt 0:00:23]} Rxb4 {[%emt 0:00:09]} 24. axb5 {[%emt 0:01:11]} cxb5 {[%emt 0:01:31]} 25. Kf2 {[%emt 0:00:16]} Bb7 {[%emt 0:02:47]} 26. Rhc1 {[%emt 0:03:32]} Re8 {[%emt 0:00:17]} 27. Rxc7 {[%emt 0:04:03]} Bd5 {[%emt 0:00:51]} 28. g6+ {[%emt 0:03:23]} Kxg6 {[%emt 0:00:30]} 29. Rxa6+ {[%emt 0:00:42]} f6 {[%emt 0:00:31]} 30. Bc3 {[%emt 0:03:51]} Rf4+ {[%emt 0:00:15]} 31. Kg3 {[%emt 0:00:09]} Rf3+ {[%emt 0:00:02]} 32. Kg4 {[%emt 0:00:17]} Rfe3 {[%emt 0:00:18]} 0-1

[Event "20th Dubai Open 2018"]
[Site "Dubai"]
[Date "2018.04.05"]
[Round "4"]
[White "Arjun, Kalyan"]
[Black "Bharath, Subramaniyam H"]
[Result "1-0"]
[ECO "B42"]
[WhiteElo "2397"]
[BlackElo "1997"]
[Annotator "NA"]
[PlyCount "79"]
[EventDate "2018.??.??"]
[EventType "swiss"]
[EventCountry "UAE"]
[SourceTitle "playchess.com"]
[Source "ChessBase"]
[SourceQuality "1"]
[TimeControl "5400+30"]

1. e4 {[%emt 0:00:00]} c5 {[%emt 0:00:07]} 2. Nf3 {[%emt 0:00:00]} e6 {[%emt 0:00:07]} 3. d4 {[%emt 0:00:00]} cxd4 {[%emt 0:00:09]} 4. Nxd4 {[%emt 0:00:00]} a6 {[%emt 0:00:08]} 5. Bd3 {[%emt 0:00:11]} Nf6 {[%emt 0:00:21]} 6. O-O {[%emt 0:00:20]} d6 {[%emt 0:00:21]} 7. Qe2 {[%emt 0:01:00]} Be7 {[%emt 0:00:15]} 8. c4 {[%emt 0:00:45]} b6 {[%emt 0:00:47]} 9. Nc3 {[%emt 0:00:36]} Bb7 {[%emt 0:00:15]} 10. f4 {[%emt 0:00:22]} O-O {[%emt 0:00:32]} 11. Kh1 {[%emt 0:00:43]} Nbd7 {[%emt 0:01:03]} 12. Bd2 {[%emt 0:00:24]} Qc7 {[%emt 0:10:48]} 13. f5 {[%emt 0:00:30]} e5 {[%emt 0:01:37]} 14. Nb3 {[%emt 0:00:10]} Nc5 {[%emt 0:03:05]} 15. Nxc5 {[%emt 0:00:09]} dxc5 {[%emt 0:00:32]} 16. g4 {[%emt 0:08:44]} h6 {[%emt 0:04:43]} 17. g5 {[%emt 0:01:37]} hxg5 {[%emt 0:01:30]} 18. Bxg5 $16 {[%emt 0:00:08]} b5 {[%emt 0:33:40]} 19. Rg1 {[%emt 0:04:52]} Rfd8 {[%emt 0:07:21]} 20. Rg3 {[%emt 0:06:38]} bxc4 {[%emt 0:09:34]} 21. Bc2 {[%emt 0:02:20]} Qc6 {[%emt 0:02:17]} 22. Rag1 {[%emt 0:04:31]} Rd4 {[%emt 0:09:04]} 23. Bh4 {[%emt 0:02:41]} Bf8 {[%emt 0:02:16]} 24. Bxf6 {[%emt 0:01:43]} Qxf6 {[%emt 0:00:07]} 25. Qh5 {[%emt 0:00:18]} Bd6 {[%emt 0:03:00]} 26. Rxg7+ {[%emt 0:07:34]} Qxg7 {[%emt 0:03:11]} 27. f6 {[%emt 0:00:19]} Qxg1+ {[%emt 0:00:21]} 28. Kxg1 {[%emt 0:00:01]} Bc6 {[%emt 0:00:40]} 29. Nd5 {[%emt 0:01:08]} Bxd5 {[%emt 0:02:58]} 30. exd5 {[%emt 0:00:33]} e4 {[%emt 0:00:06]} 31. Qg5+ {[%emt 0:00:29]} Kf8 {[%emt 0:00:04]} 32. Ba4 {[%emt 0:00:20]} Rd1+ {[%emt 0:00:17]} 33. Bxd1 {[%emt 0:00:05]} Ke8 {[%emt 0:00:07]} 34. Qg8+ {[%emt 0:00:05]} Kd7 {[%emt 0:00:05]} 35. Qxa8 {[%emt 0:00:04]} e3 {[%emt 0:00:05]} 36. Ba4+ {[%emt 0:00:17]} Kc7 {[%emt 0:00:06]} 37. Qc6+ {[%emt 0:00:05]} Kb8 {[%emt 0:00:04]} 38. Qxd6+ {[%emt 0:00:05]} Ka7 {[%emt 0:00:05]} 39. Qc7+ {[%emt 0:00:03]} Ka8 {[%emt 0:00:08]} 40. Bc6# {[%emt 0:00:04]} 1-0

[Event "20th Dubai Open 2018"]
[Site "Dubai"]
[Date "2018.04.05"]
[Round "4"]
[White "Bubalovic, Davorin"]
[Black "Tania, Sachdev"]
[Result "0-1"]
[ECO "C54"]
[WhiteElo "2187"]
[BlackElo "2407"]
[Annotator "NA"]
[PlyCount "123"]
[EventDate "2018.??.??"]
[EventType "swiss"]
[EventCountry "UAE"]
[SourceTitle "playchess.com"]
[Source "ChessBase"]
[SourceQuality "1"]
[TimeControl "5400+30"]

1. e4 {[%emt 0:00:00]} e5 {[%emt 0:00:07]} 2. Nf3 {[%emt 0:00:00]} Nc6 {[%emt 0:00:05]} 3. Bc4 {[%emt 0:00:00]} Bc5 {[%emt 0:00:16]} 4. c3 {[%emt 0:00:23]} Nf6 {[%emt 0:00:26]} 5. d3 {[%emt 0:01:03]} d6 {[%emt 0:00:45]} 6. O-O {[%emt 0:00:12]} O-O {[%emt 0:00:15]} 7. Bb3 {[%emt 0:00:49]} a5 {[%emt 0:03:28]} 8. Re1 {[%emt 0:01:55]} h6 {[%emt 0:01:44]} 9. Nbd2 {[%emt 0:03:37]} Be6 {[%emt 0:05:58]} 10. Nf1 {[%emt 0:01:17]} Ba7 {[%emt 0:02:10]} 11. Be3 {[%emt 0:03:34]} Re8 {[%emt 0:13:29]} 12. Bxa7 {[%emt 0:02:20]} Rxa7 {[%emt 0:00:21]} 13. Ng3 {[%emt 0:01:11]} b5 {[%emt 0:06:16]} 14. d4 {[%emt 0:06:19]} Bg4 {[%emt 0:14:28]} 15. Bd5 {[%emt 0:18:28]} Ne7 {[%emt 0:28:10]} 16. dxe5 {[%emt 0:10:16]} Nexd5 {[%emt 0:00:18]} 17. exf6 {[%emt 0:04:23]} Nxf6 {[%emt 0:00:14]} 18. h3 {[%emt 0:00:16]} Bc8 {[%emt 0:07:26]} 19. Nd4 {[%emt 0:01:49]} Bd7 {[%emt 0:04:56]} 20. Qd3 {[%emt 0:05:23]} Rb7 {[%emt 0:01:35]} 21. Rad1 {[%emt 0:00:36]} Rb6 {[%emt 0:02:51]} 22. f4 {[%emt 0:05:49]} Nh7 {[%emt 0:02:25]} 23. Ndf5 {[%emt 0:04:14]} Bxf5 {[%emt 0:03:15]} 24. Nxf5 {[%emt 0:00:01]} Qf6 {[%emt 0:00:14]} 25. Qg3 {[%emt 0:06:37]} Nf8 {[%emt 0:00:35]} 26. Qf3 {[%emt 0:06:17]} Ne6 {[%emt 0:00:41]} 27. g3 {[%emt 0:01:56]} Rbb8 {[%emt 0:00:48]} 28. h4 {[%emt 0:03:39]} Nc5 {[%emt 0:00:21]} 29. g4 {[%emt 0:01:27]} Qe6 {[%emt 0:00:02]} 30. Nd4 {[%emt 0:01:22]} Qxa2 {[%emt 0:00:12]} 31. g5 {[%emt 0:00:19]} h5 {[%emt 0:01:04]} 32. Qxh5 {[%emt 0:03:45]} Rxe4 {[%emt 0:00:14]} 33. Rxe4 {[%emt 0:01:47]} Nxe4 {[%emt 0:00:02]} 34. g6 {[%emt 0:01:05]} Nf6 {[%emt 0:00:49]} 35. gxf7+ {[%emt 0:01:37]} Qxf7 {[%emt 0:00:02]} 36. Qf5 {[%emt 0:00:32]} Nh5 {[%emt 0:01:13]} 37. Qg4 {[%emt 0:00:54]} Nf6 {[%emt 0:00:17]} 38. Qf5 Qh5 {[%emt 0:00:32]} 39. Qxh5 {[%emt 0:01:05]} Nxh5 {[%emt 0:00:02]} 40. f5 {[%emt 0:00:19]} b4 {[%emt 0:00:49]} 41. Ra1 {[%emt 0:00:00]} bxc3 {[%emt 0:00:13]} 42. bxc3 {[%emt 0:00:00]} c5 {[%emt 0:00:56]} 43. Ne2 {[%emt 0:00:15]} Ra8 {[%emt 0:00:47]} 44. Kf2 {[%emt 0:00:10]} a4 {[%emt 0:00:09]} 45. c4 {[%emt 0:00:28]} a3 {[%emt 0:00:28]} 46. Nc3 {[%emt 0:00:51]} Ra6 {[%emt 0:01:06]} 47. Ke3 {[%emt 0:02:13]} Kf7 {[%emt 0:00:24]} 48. Nb5 {[%emt 0:00:18]} a2 {[%emt 0:00:07]} 49. Nc3 {[%emt 0:00:01]} Ra3 {[%emt 0:00:19]} 50. Kd2 {[%emt 0:00:00]} Ng3 {[%emt 0:00:20]} 51. Kc2 {[%emt 0:00:33]} Nxf5 {[%emt 0:00:13]} 52. Kb2 {[%emt 0:00:07]} Ra8 53. Nxa2 {[%emt 0:00:16]} Rb8+ {[%emt 0:02:04]} 54. Kc2 {[%emt 0:00:18]} Nd4+ {[%emt 0:00:37]} 55. Kd3 {[%emt 0:00:32]} Rh8 {[%emt 0:00:14]} 56. Rh1 {[%emt 0:01:03]} Nf5 {[%emt 0:00:15]} 57. Rf1 {[%emt 0:00:57]} g6 {[%emt 0:00:08]} 58. Nc3 {[%emt 0:00:14]} Rxh4 {[%emt 0:00:04]} 59. Rf3 {[%emt 0:00:29]} Rd4+ {[%emt 0:00:09]} 60. Ke2 {[%emt 0:00:29]} Rxc4 {[%emt 0:00:03]} 61. Kf2 {[%emt 0:01:05]} Ke6 {[%emt 0:00:21]} 62. Nb1 0-1

[Event "20th Dubai Open 2018"]
[Site "Dubai"]
[Date "2018.04.07"]
[Round "5"]
[White "Tania, Sachdev"]
[Black "Ma, Lin"]
[Result "1/2-1/2"]
[ECO "D80"]
[WhiteElo "2407"]
[BlackElo "2156"]
[Annotator "NA"]
[PlyCount "44"]
[EventDate "2018.??.??"]
[EventType "swiss"]
[EventCountry "UAE"]
[SourceTitle "playchess.com"]
[Source "ChessBase"]
[SourceQuality "1"]
[TimeControl "5400+30"]

1. d4 {[%emt 0:00:00]} Nf6 {[%emt 0:00:10]} 2. c4 {[%emt 0:00:00]} g6 {[%emt 0:00:05]} 3. Nc3 {[%emt 0:00:00]} d5 {[%emt 0:00:06]} 4. Bg5 {[%emt 0:00:00]} Ne4 {[%emt 0:00:43]} 5. Bh4 {[%emt 0:00:04]} Nxc3 {[%emt 0:00:28]} 6. bxc3 {[%emt 0:00:01]} dxc4 {[%emt 0:00:13]} 7. e3 {[%emt 0:00:05]} Be6 {[%emt 0:00:15]} 8. Be2 {[%emt 0:00:06]} Bg7 {[%emt 0:02:04]} 9. Nh3 {[%emt 0:00:10]} Bxh3 {[%emt 0:00:16]} 10. gxh3 {[%emt 0:00:05]} Qd7 {[%emt 0:00:04]} 11. Bg4 {[%emt 0:01:16]} e6 {[%emt 0:00:07]} 12. Rb1 {[%emt 0:02:12]} c6 {[%emt 0:11:44]} 13. a4 {[%emt 0:16:30]} Na6 {[%emt 0:27:06]} 14. a5 {[%emt 0:17:55]} O-O {[%emt 0:12:30]} 15. O-O {[%emt 0:01:07]} h5 $11 {[%emt 0:04:20]} 16. Be2 {[%emt 0:08:48]} e5 {[%emt 0:01:04]} 17. Bxc4 {[%emt 0:04:09]} Qxh3 {[%emt 0:23:32]} 18. Be7 {[%emt 0:04:20]} Rfe8 {[%emt 0:02:56]} 19. Rxb7 {[%emt 0:00:49]} Rab8 {[%emt 0:00:12]} 20. Rxb8 {[%emt 0:29:53]} Rxb8 {[%emt 0:03:23]} 21. Re1 {[%emt 0:04:48]} Nc7 {[%emt 0:03:23]} 22. Bd6 {[%emt 0:00:26]} Rb2 {[%emt 0:00:48]} 1/2-1/2

[Event "20th Dubai Open 2018"]
[Site "Dubai"]
[Date "2018.04.07"]
[Round "5"]
[White "Rajdeep Sarkar"]
[Black "Makropoulou, Marina"]
[Result "1-0"]
[ECO "D78"]
[WhiteElo "2393"]
[BlackElo "2167"]
[Annotator "NA"]
[PlyCount "118"]
[EventDate "2018.??.??"]
[EventType "swiss"]
[EventCountry "UAE"]
[SourceTitle "playchess.com"]
[Source "ChessBase"]
[SourceQuality "1"]
[TimeControl "5400+30"]

1. Nf3 {[%emt 0:00:00]} d5 {[%emt 0:00:30]} 2. g3 {[%emt 0:00:00]} Nf6 {[%emt 0:00:44]} 3. Bg2 {[%emt 0:00:08]} g6 {[%emt 0:04:59]} 4. O-O {[%emt 0:00:11]} Bg7 {[%emt 0:00:03]} 5. d4 {[%emt 0:00:05]} O-O {[%emt 0:00:07]} 6. c4 {[%emt 0:00:03]} c6 {[%emt 0:01:00]} 7. Nbd2 {[%emt 0:00:08]} b6 {[%emt 0:08:50]} 8. b3 {[%emt 0:00:50]} Bb7 {[%emt 0:04:38]} 9. Bb2 {[%emt 0:00:10] LiveBook: 10 Games} Nbd7 {[%emt 0:01:09]} 10. Qc2 {[%emt 0:00:47]} e6 {[%emt 0:00:58] A11: English Opening: 1...c6} 11. Rac1 {[%emt 0:02:49]} (11. e4 dxe4 12. Nxe4 Qc7 13. Nxf6+ Nxf6 14. Ne5 Rad8 {1-0 (58) Kramnik,V (2812)-Caruana,F (2804) Paris 2016}) 11... a5 $146 {[%emt 0:07:06]} ({Find the theoretical novelty and annotate with similar games:} 11... Rc8) 12. a3 {[%emt 0:05:41]} Qe7 {[%emt 0:05:54]} 13. e4 {[%emt 0:02:21]} Nxe4 {[%emt 0:02:00]} 14. Nxe4 {[%emt 0:00:08]} dxe4 {[%emt 0:00:03]} 15. Qxe4 {[%emt 0:00:21]} Rab8 {[%emt 0:04:33]} 16. Qe2 {[%emt 0:13:34]} c5 {[%emt 0:02:35]} 17. Rcd1 {[%emt 0:04:38]} Rfd8 {[%emt 0:07:12]} 18. d5 {[%emt 0:09:26]} Bxb2 {[%emt 0:00:16]} 19. Qxb2 {[%emt 0:00:02]} exd5 {[%emt 0:00:14]} 20. cxd5 {[%emt 0:00:04]} Qf6 {[%emt 0:00:38]} 21. Qe2 $14 {[%emt 0:05:23]} Re8 {[%emt 0:07:58]} 22. Qb5 {[%emt 0:14:03]} Rbd8 {[%emt 0:01:16]} 23. Nd2 {[%emt 0:06:46]} Nb8 {[%emt 0:01:18]} 24. Ne4 {[%emt 0:11:14]} Rxe4 {[%emt 0:00:32]} 25. Bxe4 {[%emt 0:00:03]} Ba6 {[%emt 0:00:05]} 26. Qa4 {[%emt 0:00:03]} Bxf1 {[%emt 0:00:16]} 27. Rxf1 {[%emt 0:01:30]} Kg7 {[%emt 0:02:17]} 28. Bg2 {[%emt 0:01:45]} Nd7 {[%emt 0:00:22]} 29. h4 {[%emt 0:01:40]} h5 {[%emt 0:00:30]} 30. Re1 {[%emt 0:01:01]} Qd6 {[%emt 0:13:23]} 31. Qc4 {[%emt 0:04:54]} Nf6 {[%emt 0:00:50]} 32. Bf3 {[%emt 0:01:15]} Re8 {[%emt 0:03:15]} 33. Rd1 {[%emt 0:01:25]} Re5 {[%emt 0:01:24]} 34. Qb5 {[%emt 0:01:02]} Rf5 {[%emt 0:06:33]} 35. Qc6 {[%emt 0:01:55]} Qe5 {[%emt 0:05:55]} 36. d6 {[%emt 0:02:15]} Qc3 {[%emt 0:01:43]} 37. Kg2 {[%emt 0:01:59]} Nd7 {[%emt 0:04:32]} 38. Qe4 {[%emt 0:08:21]} Qxb3 {[%emt 0:00:53]} 39. Rd3 {[%emt 0:00:49]} Qc2 {[%emt 0:01:46]} 40. Re3 {[%emt 0:00:36]} Qxe4 {[%emt 0:00:43]} 41. Bxe4 {[%emt 0:00:08]} Rf6 {[%emt 0:00:08]} 42. Rd3 {[%emt 0:00:05]} Kf8 {[%emt 0:01:09]} 43. f4 {[%emt 0:00:47]} Ke8 {[%emt 0:00:28]} 44. Bc6 {[%emt 0:00:43]} Kd8 {[%emt 0:00:06]} 45. Bb5 {[%emt 0:00:36]} Rf5 {[%emt 0:01:29]} 46. Rd2 {[%emt 0:00:37]} Nf6 {[%emt 0:00:36]} 47. Kf3 {[%emt 0:00:33]} Rd5 {[%emt 0:00:20]} 48. Rxd5 {[%emt 0:00:07]} Nxd5 {[%emt 0:00:01]} 49. Bc4 {[%emt 0:00:05]} Nf6 {[%emt 0:00:32]} 50. Bxf7 {[%emt 0:00:05]} Kd7 {[%emt 0:00:09]} 51. Bxg6 {[%emt 0:00:16]} c4 {[%emt 0:00:04]} 52. Ke3 {[%emt 0:00:40]} b5 {[%emt 0:00:37]} 53. Kd4 {[%emt 0:00:07]} Kxd6 {[%emt 0:00:01]} 54. Bc2 {[%emt 0:01:45]} Nd5 {[%emt 0:02:04]} 55. a4 {[%emt 0:00:20]} bxa4 {[%emt 0:00:15]} 56. Bxa4 {[%emt 0:00:39]} c3 {[%emt 0:00:48]} 57. Bb3 {[%emt 0:00:22]} Ne7 {[%emt 0:00:11]} 58. Bc2 {[%emt 0:00:41]} a4 {[%emt 0:00:58]} 59. Kxc3 {[%emt 0:00:22]} Kd5 1-0

[Event "20th Dubai Open 2018"]
[Site "Dubai"]
[Date "2018.04.07"]
[Round "5"]
[White "Sadhwani, Raunak"]
[Black "Afshari, Mohammadreza"]
[Result "1-0"]
[ECO "C50"]
[WhiteElo "2358"]
[BlackElo "2165"]
[Annotator "NA"]
[PlyCount "73"]
[EventDate "2018.??.??"]
[EventType "swiss"]
[EventCountry "UAE"]
[SourceTitle "playchess.com"]
[Source "ChessBase"]
[SourceQuality "1"]
[TimeControl "5400+30"]

1. e4 {[%emt 0:00:00]} e5 {[%emt 0:00:24]} 2. Nf3 {[%emt 0:00:00]} Nc6 {[%emt 0:00:10]} 3. Bc4 {[%emt 0:00:23]} Bc5 {[%emt 0:00:12]} 4. O-O {[%emt 0:00:17]} Nf6 {[%emt 0:00:04]} 5. d3 {[%emt 0:00:11]} O-O {[%emt 0:00:27]} 6. a4 {[%emt 0:00:09] C50: Hungarian Defence and Giuoco Pianissimo} (6. c3 d5 7. exd5 Nxd5 8. Re1 Be6 9. Nbd2 Bd6 10. Ne4 h6 11. b4 a6 12. a4 Re8 13. Qb3 Nf6 14. Bxe6 Rxe6 15. Be3 Ne7 16. Rad1 {1-0 (25) Kramnik,V (2800)-Anand,V (2776) Moscow 2018}) 6... d5 {[%emt 0:07:37]} 7. exd5 {[%emt 0:00:08]} Nxd5 {[%emt 0:00:07]} 8. Re1 {[%emt 0:01:13]} Bg4 $146 {[%emt 0:02:48]} ({Predecessor:} 8... Re8 9. h3 Bf5 10. Nbd2 a6 11. Ne4 Bf8 12. Bg5 Qd7 13. Ng3 Be6 {0-1 (72) Paehtz,E (2463)-Zhao,X (2504) Doha 2016}) 9. h3 {[%emt 0:00:12]} Bh5 {[%emt 0:00:02]} 10. Nbd2 {[%emt 0:00:09]} Re8 {[%emt 0:10:55]} 11. Ne4 {[%emt 0:00:26]} Bf8 {[%emt 0:00:22]} 12. Ng3 {[%emt 0:01:31]} Bg6 {[%emt 0:00:41]} 13. c3 {[%emt 0:02:16]} a6 {[%emt 0:07:36]} 14. a5 {[%emt 0:00:18]} Nf6 {[%emt 0:08:08]} (14... b5 $11 15. axb6 Nxb6) 15. Nh4 {[%emt 0:02:16]} Qd7 {[%emt 0:09:10]} 16. Bg5 {[%emt 0:03:02]} Be7 {[%emt 0:06:26]} 17. Nxg6 {[%emt 0:06:12]} hxg6 {[%emt 0:00:01]} 18. Qb3 {[%emt 0:00:06]} Rf8 {[%emt 0:00:33]} 19. Be3 {[%emt 0:01:52]} Rab8 {[%emt 0:01:33]} 20. Red1 {[%emt 0:03:52]} Bd6 {[%emt 0:03:47]} 21. Bg5 {[%emt 0:06:42]} Nh7 {[%emt 0:00:47]} 22. Be3 {[%emt 0:00:04]} Nf6 {[%emt 0:00:02]} 23. Qc2 {[%emt 0:02:00]} Rbd8 $16 {[%emt 0:05:01]} (23... Ne7 $1 $14) 24. b4 {[%emt 0:13:18]} Qc8 {[%emt 0:05:59]} 25. Ne4 {[%emt 0:05:31]} Nxe4 {[%emt 0:01:10]} 26. dxe4 {[%emt 0:00:50]} Be7 {[%emt 0:03:02]} 27. Rdb1 {[%emt 0:05:15]} Nb8 {[%emt 0:02:53]} 28. b5 {[%emt 0:01:17]} c5 {[%emt 0:06:29]} 29. Bd5 {[%emt 0:02:35]} Rd7 {[%emt 0:01:28]} 30. Qb2 {[%emt 0:00:42]} Rfd8 {[%emt 0:03:57]} 31. c4 {[%emt 0:05:16]} Rc7 {[%emt 0:00:11]} 32. Ra3 {[%emt 0:01:28]} axb5 {[%emt 0:04:54]} 33. cxb5 {[%emt 0:00:18]} c4 {[%emt 0:01:38]} 34. Rc3 {[%emt 0:00:09]} Rxd5 {[%emt 0:04:12]} 35. exd5 {[%emt 0:00:06]} Qd7 {[%emt 0:01:08]} 36. Qa2 {[%emt 0:01:47]} Qxd5 {[%emt 0:01:43]} 37. a6 {[%emt 0:00:06]} 1-0